bitfinex/quotes_SOLUSD_20230112
["timestamp","ask_amount","ask_price","bid_price","bid_amount"]
[1673538545485,20.0,16.025,16.001,20.0]
[1673538545815,20.0,16.025,16.002,20.0]
[1673538546020,46.81,16.024,16.003,20.0]
[1673538546427,46.81,16.024,16.003,21.77146666]
[1673538546645,20.0,16.023,16.003,21.77146666]
[1673538546853,46.82,16.022,16.004,20.0]
[1673538547070,46.81,16.024,16.004,20.0]
[1673538547285,46.81,16.024,16.005,21.77146666]
[1673538547716,46.81,16.025,16.006,21.77146666]
[1673538548020,46.81,16.025,16.007,20.0]
[1673538548229,46.81,16.025,16.01,26.46]
[1673538548439,20.0,16.027,16.01,26.46]
[1673538548648,46.8,16.026,16.011,20.0]
[1673538548970,26.58,16.02,16.011,20.0]
[1673538549163,46.82,16.019,16.002,20.0]
[1673538549376,17.0,16.018,16.001,20.0]
[1673538549707,20.0,16.016,16.001,20.0]
[1673538549918,17.0,16.015,16.001,20.0]
[1673538550438,46.82,16.019,16.001,20.0]
[1673538550640,139.1103,16.02,16.001,111.6906465]
[1673538550839,139.1103,16.02,16.002,20.0]
[1673538551056,139.1103,16.02,16.001,113.46211316]
[1673538551381,63.82,16.019,16.001,20.0]
[1673538551585,20.0,16.018,16.001,20.0]
[1673538551792,63.83,16.017,15.998,44.8106465]
[1673538552329,63.83,16.017,15.994,1.77146666]
[1673538552737,20.0,16.016,15.993,44.8106465]
[1673538552953,63.84,16.015,15.994,44.8106465]
[1673538553825,20.0,16.014,15.994,44.8106465]
[1673538554038,63.84,16.013,15.994,44.8106465]
[1673538554544,20.0,16.012,15.994,44.8106465]
[1673538554757,63.85,16.011,15.995,20.0]
[1673538555399,180.6762,16.011,15.995,20.0]
[1673538555713,26.6,16.01,15.995,20.0]
[1673538555906,188.3,16.008,15.992,46.9]
[1673538556119,235.16,16.007,15.992,46.9]
[1673538556434,270.91725104,16.007,15.992,46.9]
[1673538556643,20.0,16.006,15.992,46.9]
[1673538556861,252.16,16.005,15.992,46.9]
[1673538557293,252.16,16.005,15.993,20.0]
[1673538557613,20.0,16.004,15.993,20.0]
[1673538557809,63.87,16.003,15.993,20.0]
[1673538558645,20.0,16.002,15.993,20.0]
[1673538558952,46.88,16.001,15.993,20.0]
[1673538559168,37.0,16.0,15.993,20.0]
[1673538559392,46.88,15.999,15.993,20.0]
[1673538559792,37.0,16.0,15.993,20.0]
[1673538560213,63.58,16.0,15.993,20.0]
[1673538560970,235.18,15.999,15.978,20.0]
[1673538561180,17.0,15.998,15.977,109.2341]
[1673538561387,46.89,15.997,15.977,109.2341]
[1673538561600,17.0,15.996,15.977,109.2341]
[1673538561918,26.6,15.99,15.971,46.93]
[1673538562104,63.91,15.989,15.972,115.3651]
[1673538562753,20.0,15.988,15.972,115.3651]
[1673538563049,63.91,15.989,15.972,115.3651]
[1673538563263,46.91,15.989,15.972,115.3651]
[1673538563484,46.9,15.994,15.972,115.3651]
[1673538563682,17.0,15.993,15.973,20.0]
[1673538563894,46.9,15.992,15.973,20.0]
[1673538564107,46.9,15.994,15.973,20.0]
[1673538564313,17.0,15.993,15.973,20.0]
[1673538564545,46.9,15.992,15.973,20.0]
[1673538564853,17.0,15.991,15.975,20.0]
[1673538565260,46.9,15.994,15.976,20.0]
[1673538565473,17.0,15.993,15.976,20.0]
[1673538565890,46.9,15.992,15.976,20.0]
[1673538566103,46.89,15.998,15.976,20.0]
[1673538566317,108.8391,16.0,15.98,133.65]
[1673538566534,108.8391,16.0,15.981,20.0]
[1673538566743,108.8391,16.0,15.982,20.0]
[1673538566967,108.8391,16.0,15.982,139.0873]
[1673538567568,108.8391,16.0,15.984,20.0]
[1673538567785,46.86,16.007,15.99,26.73]
[1673538568309,65.60725104,16.009,15.991,20.0]
[1673538568852,18.75725104,16.008,15.991,20.0]
[1673538569068,46.86,16.007,15.991,20.0]
[1673538569271,46.86,16.007,15.992,20.0]
[1673538569672,46.86,16.007,15.993,20.0]
[1673538570930,17.0,16.006,15.993,20.0]
[1673538574207,1.75725104,16.006,15.986,20.0]
[1673538574421,26.77,16.02,16.0,26.73]
[1673538574617,20.0,16.025,16.001,40.0]
[1673538574828,20.0,16.025,16.001,83.45716828]
[1673538575161,46.81,16.024,16.002,43.45716828]
[1673538575352,46.81,16.024,16.003,20.0]
[1673538575558,46.81,16.024,16.003,22.81432837]
[1673538575559,20.0,16.023,16.003,22.81432837]
[1673538575782,26.58,16.02,16.004,2.81432837]
[1673538576004,46.82,16.019,16.004,2.81432837]
[1673538576424,20.0,16.018,16.004,2.81432837]
[1673538576632,115.3978,16.02,16.004,2.81432837]
[1673538577258,115.3978,16.02,16.004,42.81432837]
[1673538577474,115.3978,16.02,16.004,84.50002999]
[1673538577688,115.3978,16.02,16.005,2.81432837]
[1673538577889,115.3978,16.02,16.006,20.0]
[1673538578205,115.3978,16.02,16.007,20.0]
[1673538578420,115.3978,16.02,16.007,22.81432837]
[1673538579166,115.3978,16.02,16.007,20.0]
[1673538579379,115.3978,16.02,16.008,2.733714]
[1673538579700,110.9267,16.029,16.008,2.733714]
[1673538579701,46.81,16.025,16.008,2.733714]
[1673538579892,20.0,16.027,16.008,22.733714]
[1673538580101,20.0,16.027,16.009,20.0]
[1673538580423,20.0,16.027,16.009,22.733714]
[1673538580636,20.0,16.027,16.01,2.733714]
[1673538581035,63.8,16.026,16.009,20.0]
[1673538581262,20.0,16.025,16.005,20.0]
[1673538581472,63.81,16.024,16.007,2.733714]
[1673538581671,20.0,16.023,16.007,2.733714]
[1673538581873,63.81,16.024,16.007,22.733714]
[1673538582087,46.81,16.024,16.007,22.733714]
[1673538582296,128.7743,16.025,16.008,2.65685977]
[1673538582530,46.81,16.024,16.008,22.65685977]
[1673538583156,46.81,16.024,16.009,22.65685977]
[1673538583475,46.81,16.024,16.007,20.0]
[1673538583900,46.81,16.024,16.009,2.65685977]
[1673538584817,17.0,16.023,16.009,2.65685977]
[1673538585023,17.0,16.023,16.008,20.0]
[1673538585244,17.0,16.023,16.008,22.65685977]
[1673538585469,17.0,16.023,16.009,20.0]
[1673538586624,17.0,16.023,16.008,2.65685977]
[1673538587252,20.0,16.021,16.007,20.0]
[1673538587463,136.9871,16.02,16.005,20.0]
[1673538587673,183.8071,16.02,16.005,20.0]
[1673538588004,20.0,16.019,16.0,26.6]
[1673538588213,46.83,16.018,16.0,2.65685977]
[1673538588424,46.83,16.018,15.991,116.1285]
[1673538588425,20.0,16.017,15.991,116.1285]
[1673538588621,46.83,16.016,15.997,2.65685977]
[1673538589369,46.83,16.016,16.0,26.73]
[1673538589765,46.83,16.016,16.001,20.0]
[1673538590616,46.83,16.016,16.002,2.65685977]
[1673538592313,46.83,16.016,16.002,22.65685977]
[1673538592748,116.8864,16.017,16.003,22.65685977]
[1673538593891,46.82,16.019,16.004,2.65685977]
[1673538594289,46.82,16.019,16.003,20.0]
[1673538594710,17.0,16.018,16.003,20.0]
[1673538594942,66.83,16.017,16.003,20.0]
[1673538595128,17.0,16.016,16.001,20.0]
[1673538595335,20.0,16.014,16.001,20.0]
[1673538596185,20.0,16.014,15.999,20.0]
[1673538596397,63.83,16.016,16.002,2.65685977]
[1673538598601,17.0,16.016,16.005,20.0]
[1673538600079,17.0,16.016,16.005,60.66130162]
[1673538600282,17.0,16.016,16.007,20.0]
[1673538600499,17.0,16.016,16.008,20.0]
[1673538600708,17.0,16.016,16.008,66.86]
[1673538601237,17.0,16.016,16.009,20.0]
[1673538601459,17.0,16.016,16.01,20.0]
[1673538601666,17.0,16.016,16.008,20.0]
[1673538602084,17.0,16.016,16.006,20.0]
[1673538602279,17.0,16.016,16.005,20.0]
[1673538603022,46.82,16.022,16.005,20.0]
[1673538603347,26.47,16.02,16.004,20.0]
[1673538603540,252.12,16.019,15.991,46.91]
[1673538603751,252.12,16.019,15.992,7.01865]
[1673538603950,252.12,16.019,15.993,46.9]
[1673538604167,20.0,16.018,15.994,20.0]
[1673538604386,252.13,16.017,15.994,20.0]
[1673538604587,63.83,16.017,15.994,20.0]
[1673538604797,119.179,16.016,15.994,22.65685977]
[1673538605021,20.0,16.014,15.994,22.65685977]
[1673538605236,46.84,16.013,15.994,22.65685977]
[1673538605637,46.84,16.013,15.994,20.0]
[1673538606475,46.84,16.013,15.995,46.89]
[1673538606687,141.1137,16.02,16.0,133.57]
[1673538606688,114.3437,16.02,16.0,133.57]
[1673538606903,110.7551,16.028,16.001,27.0147]
[1673538607114,110.7551,16.028,16.003,20.0]
[1673538607334,26.86,16.03,16.004,7.01339]
[1673538607335,46.8,16.027,16.004,7.01339]
[1673538607533,46.8,16.028,16.004,9.67024977]
[1673538607748,46.8,16.028,16.006,20.0]
[1673538607972,46.8,16.028,16.006,27.01251]
[1673538608283,46.8,16.028,16.008,20.0]
[1673538608494,26.86,16.03,16.01,20.0]
[1673538608686,157.7167,16.029,16.01,40.0]
[1673538608898,157.7167,16.029,16.011,22.65685977]
[1673538609212,157.7167,16.029,16.012,2.65685977]
[1673538609624,110.9267,16.029,16.012,2.65685977]
[1673538610048,110.9267,16.029,16.012,22.65685977]
[1673538610272,110.9267,16.029,16.013,20.0]
[1673538610490,110.9267,16.029,16.014,7.00901]
[1673538610806,110.9267,16.029,16.015,20.0]
[1673538611031,110.9267,16.029,16.013,20.0]
[1673538611631,46.8,16.028,16.013,20.0]
[1673538612168,46.8,16.028,16.014,20.0]
[1673538612383,46.8,16.028,16.016,20.0]
[1673538612587,110.9267,16.029,16.017,20.0]
[1673538614170,110.9267,16.029,16.015,20.0]
[1673538615513,110.9267,16.029,16.014,20.0]
[1673538615727,17.0,16.028,16.012,20.0]
[1673538615936,17.0,16.028,16.011,20.0]
[1673538616163,188.3,16.026,16.009,46.85]
[1673538616383,188.3,16.024,16.009,46.85]
[1673538616596,63.81,16.023,16.009,46.85]
[1673538616909,63.81,16.023,16.005,20.0]
[1673538617100,20.0,16.022,16.005,20.0]
[1673538617312,63.82,16.021,16.005,20.0]
[1673538617515,46.82,16.021,16.005,20.0]
[1673538617740,46.8,16.026,16.007,20.0]
[1673538618057,17.0,16.025,16.007,20.0]
[1673538618264,46.81,16.024,16.008,20.0]
[1673538619527,20.0,16.022,16.008,20.0]
[1673538619719,17.0,16.021,16.006,20.0]
[1673538619935,17.0,16.021,16.005,40.0]
[1673538620146,108.7824,16.02,16.005,40.0]
[1673538620471,108.7824,16.02,16.006,20.0]
[1673538621099,108.7824,16.02,16.005,40.0]
[1673538621303,17.0,16.019,16.005,20.0]
[1673538621949,20.0,16.018,16.005,20.0]
[1673538622163,17.0,16.017,16.005,20.0]
[1673538623091,46.82,16.019,16.005,20.0]
[1673538623302,133.78,16.03,16.01,26.73]
[1673538623303,46.81,16.025,16.01,26.73]
[1673538623515,46.8,16.027,16.011,20.0]
[1673538623925,20.0,16.026,16.011,20.0]
[1673538624569,165.5339,16.028,16.011,20.0]
[1673538624570,165.5339,16.028,16.012,20.0]
[1673538624785,157.7167,16.029,16.012,27.00988]
[1673538624999,110.9267,16.029,16.014,20.0]
[1673538625192,20.0,16.028,16.013,20.0]
[1673538625401,46.8,16.027,16.01,26.73]
[1673538625735,46.8,16.027,16.005,56.61165585]
[1673538626049,20.0,16.025,16.005,56.61165585]
[1673538626236,20.0,16.028,16.006,2.65685977]
[1673538626453,20.0,16.028,16.01,26.46]
[1673538626663,46.8,16.027,16.007,43.62372585]
[1673538626886,20.0,16.026,16.007,43.62372585]
[1673538627086,46.81,16.025,16.007,36.61165585]
[1673538627832,46.81,16.025,16.008,20.0]
[1673538628234,66.8,16.028,16.009,20.0]
[1673538629299,46.8,16.028,16.009,56.61165585]
[1673538629937,220.2392,16.029,16.01,133.57]
[1673538630153,220.2392,16.029,16.011,20.0]
[1673538630337,220.2392,16.029,16.011,63.62197585]
[1673538630758,220.2392,16.029,16.012,36.61165585]
[1673538630972,220.2392,16.029,16.013,40.0]
[1673538631496,220.2392,16.029,16.013,76.61165585]
[1673538632553,110.9267,16.029,16.013,76.61165585]
[1673538632758,46.77,16.037,16.013,76.61165585]
[1673538632969,158.0559,16.037,16.014,7.00901]
[1673538633181,158.0559,16.037,16.016,20.0]
[1673538633404,158.0559,16.037,16.017,20.0]
[1673538633809,158.0559,16.037,16.018,20.0]
[1673538634144,153.0559,16.037,16.019,20.0]
[1673538635189,153.0559,16.037,16.02,26.73]
[1673538635606,153.0559,16.037,16.021,20.0]
[1673538635950,153.0559,16.037,16.022,20.0]
[1673538636119,153.0559,16.037,16.023,20.0]
[1673538636331,153.0559,16.037,16.015,46.84]
[1673538636542,153.0559,16.037,16.014,469.94901]
[1673538636868,153.0559,16.037,16.021,20.0]
[1673538637187,111.2859,16.037,16.021,20.0]
[1673538637405,158.0559,16.037,16.021,20.0]
[1673538637612,158.0559,16.037,16.022,20.0]
[1673538638534,46.77,16.039,16.022,20.0]
[1673538638758,109.32,16.045,16.024,20.0]
[1673538639077,109.32,16.045,16.025,20.0]
[1673538639484,111.6992,16.044,16.025,20.0]
[1673538639708,46.75,16.043,16.025,20.0]
[1673538639922,26.63,16.04,16.025,20.0]
[1673538640535,46.77,16.039,16.025,20.0]
[1673538641189,26.63,16.04,16.025,20.0]
[1673538641410,46.77,16.037,16.025,20.0]
[1673538641609,20.0,16.036,16.024,20.0]
[1673538641816,46.77,16.037,16.021,20.0]
[1673538642143,46.77,16.037,16.017,20.0]
[1673538642144,46.77,16.039,16.02,46.73]
[1673538642351,46.77,16.039,16.021,20.0]
[1673538642565,46.77,16.039,16.022,20.0]
[1673538644140,46.77,16.037,16.022,20.0]
[1673538644748,46.77,16.039,16.022,20.0]
[1673538645711,20.0,16.036,16.021,20.0]
[1673538645906,20.0,16.036,16.02,26.73]
[1673538645907,46.78,16.035,16.02,26.73]
[1673538647080,46.77,16.036,16.02,63.64047953]
[1673538647601,46.77,16.036,16.02,26.73]
[1673538648641,46.77,16.036,16.021,20.0]
[1673538649062,46.77,16.036,16.022,20.0]
[1673538649695,46.77,16.036,16.023,20.0]
[1673538651071,117.4207,16.037,16.023,20.0]
[1673538651072,164.1907,16.037,16.023,20.0]
[1673538651703,20.0,16.036,16.017,20.0]
[1673538651914,63.78,16.035,16.017,20.0]
[1673538652130,20.0,16.034,16.017,20.0]
[1673538652445,63.78,16.033,16.017,20.0]
[1673538652627,20.0,16.032,16.017,20.0]
[1673538652836,46.79,16.031,16.017,20.0]
[1673538653279,46.78,16.033,16.017,20.0]
[1673538654100,46.77,16.036,16.018,20.0]
[1673538654320,46.77,16.036,16.019,20.0]
[1673538654538,20.0,16.034,16.019,20.0]
[1673538654751,46.78,16.033,16.019,20.0]
[1673538654952,20.0,16.032,16.017,20.0]
[1673538655165,46.79,16.031,16.017,20.0]
[1673538655575,46.79,16.031,16.016,20.0]
[1673538655779,26.63,16.03,16.01,52.24981373]
[1673538656005,26.63,16.03,16.0,133.53]
[1673538656006,162.276,16.029,16.003,118.6972]
[1673538656205,162.276,16.029,16.004,39.3081355]
[1673538656420,20.0,16.027,16.005,27.01295]
[1673538656630,46.8,16.026,16.005,9.66980977]
[1673538656844,17.0,16.025,16.005,9.66980977]
[1673538657150,46.81,16.024,16.006,20.0]
[1673538657563,109.992,16.023,16.007,20.0]
[1673538657793,46.82,16.022,16.008,20.0]
[1673538658005,109.992,16.023,16.008,20.0]
[1673538658616,46.82,16.022,16.008,20.0]
[1673538658950,158.3938,16.028,16.008,20.0]
[1673538659355,20.0,16.027,16.008,20.0]
[1673538659559,46.8,16.026,16.008,20.0]
[1673538659789,111.5938,16.028,16.01,26.46]
[1673538660001,111.5938,16.028,16.011,20.0]
[1673538660325,111.5938,16.028,16.012,46.84]
[1673538660509,115.486,16.029,16.013,20.0]
[1673538660727,46.78,16.035,16.014,27.00901]
[1673538660937,46.77,16.036,16.015,7.00857]
[1673538661249,46.77,16.036,16.016,20.0]
[1673538661457,46.77,16.036,16.017,20.0]
[1673538661887,158.3638,16.037,16.02,26.46]
[1673538662102,111.5938,16.037,16.021,20.0]
[1673538662626,111.5938,16.037,16.02,7.00638]
[1673538662627,158.3638,16.037,16.02,7.00638]
[1673538662839,158.3638,16.037,16.019,20.0]
[1673538663366,158.3638,16.037,16.017,53.94549546]
[1673538663559,20.0,16.036,16.017,53.94549546]
[1673538663764,46.78,16.035,16.017,53.94549546]
[1673538664512,46.77,16.036,16.017,53.94549546]
[1673538664722,46.77,16.036,16.017,60.95319546]
[1673538665148,46.77,16.036,16.018,20.0]
[1673538665467,46.77,16.036,16.019,20.0]
[1673538665783,46.77,16.036,16.02,20.0]
[1673538666001,46.77,16.036,16.02,46.73]
[1673538666234,110.4279,16.042,16.021,9.66280977]
[1673538666532,46.76,16.041,16.022,22.65685977]
[1673538666723,46.76,16.041,16.022,42.65685977]
[1673538666933,46.76,16.041,16.023,2.65685977]
[1673538668192,46.77,16.037,16.023,2.65685977]
[1673538668717,46.76,16.041,16.023,2.65685977]
[1673538669669,46.76,16.041,16.024,7.00463]
[1673538670110,46.76,16.041,16.025,2.65685977]
[1673538670419,46.76,16.041,16.025,20.0]
[1673538670638,46.77,16.037,16.022,20.0]
[1673538670825,20.0,16.036,16.019,69.47685977]
[1673538671038,46.78,16.035,16.019,66.82]
[1673538671251,20.0,16.036,16.019,66.82]
[1673538671456,166.579,16.035,16.019,66.82]
[1673538673240,166.579,16.035,16.02,20.0]
[1673538674937,119.799,16.035,16.02,29.66323977]
[1673538675659,46.78,16.034,16.02,27.00638]
[1673538675869,46.78,16.034,16.02,20.0]
[1673538676091,46.78,16.034,16.018,20.0]
[1673538676299,20.0,16.033,16.018,20.0]
[1673538676521,46.79,16.032,16.018,20.0]
[1673538677036,46.78,16.034,16.018,20.0]
[1673538677258,37.0,16.033,16.018,20.0]
[1673538677483,46.79,16.032,16.018,20.0]
[1673538678005,46.78,16.034,16.018,20.0]
[1673538678614,17.0,16.033,16.018,20.0]
[1673538678827,46.79,16.032,16.018,20.0]
[1673538679251,17.0,16.031,16.013,40.0]
[1673538679467,46.79,16.03,16.013,40.0]
[1673538679788,109.8995,16.029,16.013,40.0]
[1673538680103,46.8,16.028,16.013,40.0]
[1673538680416,109.8995,16.029,16.013,40.0]
[1673538681996,109.8995,16.029,16.014,7.00901]
[1673538682178,109.8995,16.029,16.015,20.0]
[1673538682393,109.8995,16.029,16.016,20.0]
[1673538682615,109.8995,16.029,16.017,20.0]
[1673538683138,109.8995,16.029,16.018,20.0]
[1673538685145,46.78,16.034,16.02,26.73]
[1673538685344,119.799,16.035,16.021,40.0]
[1673538685767,46.77,16.037,16.021,40.0]
[1673538685988,46.77,16.037,16.021,20.0]
[1673538686198,20.0,16.036,16.018,57.57904893]
[1673538686411,46.78,16.035,16.018,57.57904893]
[1673538686597,112.4297,16.034,16.018,57.57904893]
[1673538686914,46.78,16.033,16.018,57.57904893]
[1673538687671,46.78,16.033,16.018,20.0]
[1673538688819,46.78,16.033,16.019,20.0]
[1673538689536,46.78,16.033,16.017,20.0]
[1673538691080,20.0,16.032,16.017,20.0]
[1673538691374,26.63,16.03,16.017,20.0]
[1673538691690,161.5042,16.029,16.015,20.0]
[1673538691877,114.7142,16.029,16.015,20.0]
[1673538692084,114.7142,16.029,16.015,57.57904893]
[1673538692327,114.7142,16.029,16.016,20.0]
[1673538692516,114.7142,16.029,16.018,20.0]
[1673538692728,114.7142,16.029,16.019,20.0]
[1673538693171,114.7142,16.029,16.02,20.0]
[1673538693454,114.7142,16.029,16.021,20.0]
[1673538697720,114.7142,16.029,16.022,20.0]
[1673538697900,114.7142,16.029,16.023,20.0]
[1673538699800,114.7142,16.029,16.021,20.0]
[1673538700958,114.7142,16.029,16.022,20.0]
[1673538701157,114.7142,16.029,16.023,20.0]
[1673538701569,112.4297,16.034,16.023,20.0]
[1673538702850,46.77,16.037,16.023,20.0]
[1673538703066,111.1658,16.038,16.023,22.67162399]
[1673538703252,111.1658,16.038,16.024,27.00463]
[1673538703461,111.1658,16.038,16.025,20.0]
[1673538704005,111.1658,16.038,16.026,20.0]
[1673538704221,111.1658,16.038,16.027,20.0]
[1673538704838,46.77,16.039,16.027,20.0]
[1673538705161,111.9126,16.044,16.028,22.67162399]
[1673538705467,111.9126,16.044,16.028,27.00289]
[1673538705670,111.9126,16.044,16.029,75.94266959]
[1673538706094,111.9126,16.044,16.03,22.67162399]
[1673538706298,111.9126,16.044,16.031,20.0]
[1673538707035,111.9126,16.044,16.032,20.0]
[1673538707256,46.75,16.046,16.033,20.0]
[1673538707489,117.9232,16.047,16.034,53.78027]
[1673538707808,117.9232,16.047,16.035,26.99983]
[1673538708124,114.6941,16.054,16.036,26.99939]
[1673538708332,114.6941,16.054,16.037,26.99896]
[1673538708529,114.6941,16.054,16.038,6.99852]
[1673538708766,114.6941,16.054,16.039,20.0]
[1673538709066,114.6941,16.054,16.04,20.0]
[1673538709258,114.6941,16.054,16.041,20.0]
[1673538711367,46.72,16.053,16.041,20.0]
[1673538711583,17.6,16.05,16.036,20.0]
[1673538712630,46.74,16.049,16.036,20.0]
[1673538712855,17.6,16.05,16.036,20.0]
[1673538713038,17.6,16.05,16.035,20.0]
[1673538713255,63.74,16.049,16.022,20.0]
[1673538713514,17.67,16.04,16.022,20.0]
[1673538713684,17.67,16.04,16.025,5.34324798]
[1673538713999,46.74,16.047,16.027,2.67162399]
[1673538714191,46.74,16.048,16.028,7.00289]
[1673538714400,46.74,16.049,16.028,47.11815227]
[1673538714619,46.74,16.049,16.029,2.67162399]
[1673538714849,46.74,16.049,16.03,20.0]
[1673538715282,46.74,16.049,16.031,2.67162399]
[1673538715684,46.74,16.049,16.031,22.67162399]
[1673538716206,46.74,16.049,16.032,20.0]
[1673538716414,46.74,16.049,16.033,20.0]
[1673538716627,46.74,16.049,16.034,20.0]
[1673538716838,46.74,16.049,16.035,20.0]
[1673538717046,37.0,16.048,16.03,22.67162399]
[1673538717246,20.0,16.046,16.03,22.67162399]
[1673538717458,46.75,16.045,16.03,22.67162399]
[1673538717671,46.75,16.046,16.03,22.67162399]
[1673538718412,17.67,16.04,16.025,65.3]
[1673538718657,17.67,16.04,16.029,20.0]
[1673538718817,17.67,16.04,16.027,20.0]
[1673538719958,17.67,16.04,16.028,20.0]
[1673538720197,17.67,16.04,16.029,20.0]
[1673538721857,63.77,16.039,16.029,20.0]
[1673538722079,20.0,16.038,16.029,20.0]
[1673538722291,46.77,16.037,16.024,20.0]
[1673538722606,63.77,16.037,16.019,20.0]
[1673538723139,20.0,16.036,16.019,20.0]
[1673538723327,63.78,16.035,16.019,20.0]
[1673538723537,46.78,16.035,16.019,60.11526227]
[1673538723745,46.77,16.037,16.019,60.11526227]
[1673538724080,46.77,16.037,16.019,62.70997263]
[1673538724279,108.5573,16.038,16.02,33.35638]
[1673538724478,108.5573,16.038,16.021,72.33595]
[1673538724690,108.5573,16.038,16.022,7.00551]
[1673538724911,108.5573,16.038,16.023,65.32]
[1673538725119,108.5573,16.038,16.024,20.0]
[1673538725322,108.5573,16.038,16.025,20.0]
[1673538725543,108.5573,16.038,16.026,20.0]
[1673538726579,108.5573,16.038,16.027,2.52186356]
[1673538726793,108.5573,16.038,16.028,20.0]
[1673538727002,108.5573,16.038,16.029,20.0]
[1673538727840,108.5573,16.038,16.03,20.0]
[1673538728054,108.5573,16.038,16.031,20.0]
[1673538729654,108.5573,16.038,16.029,20.0]
[1673538729961,108.5573,16.038,16.028,20.0]
[1673538732695,63.77,16.037,16.021,20.0]
[1673538733121,46.77,16.037,16.021,20.0]
[1673538733437,46.77,16.037,16.021,62.56440409]
[1673538733633,108.5573,16.038,16.022,2.44914182]
[1673538733845,108.5573,16.038,16.023,46.81]
[1673538734067,108.5573,16.038,16.023,93.93033227]
[1673538734272,108.5573,16.038,16.024,42.56440409]
[1673538734581,108.5573,16.038,16.026,20.0]
[1673538734989,108.5573,16.038,16.026,60.11526227]
[1673538735199,108.5573,16.038,16.027,20.0]
[1673538735730,46.77,16.037,16.026,40.11526227]
[1673538735935,66.77,16.037,16.02,20.0]
[1673538736781,20.0,16.036,16.02,20.0]
[1673538737107,20.0,16.034,16.02,20.0]
[1673538737326,46.78,16.035,16.02,20.0]
[1673538738368,46.77,16.037,16.02,60.11526227]
[1673538738787,46.77,16.037,16.022,20.0]
[1673538739106,46.77,16.037,16.023,20.0]
[1673538740458,108.5573,16.038,16.024,20.0]
[1673538740666,108.5573,16.038,16.025,20.0]
[1673538745108,46.77,16.037,16.023,40.11526227]
[1673538745296,46.77,16.037,16.02,20.0]
[1673538746684,46.77,16.037,16.022,20.0]
[1673538747209,46.77,16.037,16.023,20.0]
[1673538747624,17.0,16.036,16.023,20.0]
[1673538747947,46.78,16.035,16.023,20.0]
[1673538748555,46.78,16.035,16.021,20.0]
[1673538750260,46.77,16.037,16.021,20.0]